[Event "Open NK Rapid 2025"]
[Site "Helmond, Netherlands"]
[Date "2025.05.03"]
[Round "2.4"]
[White "Peng, Li Min"]
[Black "Jara Segovia, Jesus Javier"]
[Result "1-0"]
[TimeControl "15+5"]
[WhiteFideId "14112620"]
[BlackFideId "3925439"]
[WhiteElo "2510"]
[BlackElo "1909"]

1. Nf3 {[%clk 00:15:07]} {[%emt 00:00:03]} Nf6 {[%clk 00:14:54]} {[%emt
00:00:17]} 2. c4 {[%clk 00:15:06]} {[%emt 00:00:05]} d5 {[%clk 00:14:51]}
{[%emt 00:00:09]} 3. cxd5 {[%clk 00:15:07]} {[%emt 00:00:03]} Nxd5 {[%clk
00:14:41]} {[%emt 00:00:16]} 4. e4 {[%clk 00:14:12]} {[%emt 00:00:59]} Nb6
{[%clk 00:14:29]} {[%emt 00:00:18]} 5. d4 {[%clk 00:14:10]} {[%emt 00:00:06]}
g6 {[%clk 00:14:21]} {[%emt 00:00:14]} 6. Nc3 {[%clk 00:14:08]} {[%emt
00:00:06]} Bg7 {[%clk 00:14:24]} {[%emt 00:00:03]} 7. Be3 {[%clk 00:14:11]}
{[%emt 00:00:02]} Bg4 {[%clk 00:14:14]} {[%emt 00:00:14]} 8. Qd2 {[%clk
00:14:07]} {[%emt 00:00:09]} Bxf3 {[%clk 00:14:04]} {[%emt 00:00:16]} 9. gxf3
{[%clk 00:14:10]} {[%emt 00:00:02]} Nc6 {[%clk 00:14:08]} {[%emt 00:00:01]} 10.
O-O-O {[%clk 00:13:51]} {[%emt 00:00:23]} a6 {[%clk 00:13:06]} {[%emt
00:01:08]} 11. f4 {[%clk 00:13:43]} {[%emt 00:00:13]} Qd7 {[%clk 00:12:34]}
{[%emt 00:00:37]} 12. h4 {[%clk 00:13:25]} {[%emt 00:00:22]} O-O-O {[%clk
00:12:26]} {[%emt 00:00:14]} 13. d5 {[%clk 00:13:27]} {[%emt 00:00:02]} Na5
{[%clk 00:12:08]} {[%emt 00:00:24]} 14. Bh3 {[%clk 00:13:07]} {[%emt 00:00:24]}
f5 {[%clk 00:12:11]} {[%emt 00:00:02]} 15. exf5 {[%clk 00:11:38]} {[%emt
00:01:35]} gxf5 {[%clk 00:12:12]} {[%emt 00:00:04]} 16. Qc2 {[%clk 00:11:39]}
{[%emt 00:00:03]} Rhf8 {[%clk 00:12:00]} {[%emt 00:00:17]} 17. Rhg1 {[%clk
00:08:20]} {[%emt 00:03:25]} Bh8 {[%clk 00:09:55]} {[%emt 00:02:10]} 18. Rg5
{[%clk 00:08:17]} {[%emt 00:00:07]} Kb8 {[%clk 00:09:46]} {[%emt 00:00:15]} 19.
Bxf5 {[%clk 00:08:16]} {[%emt 00:00:06]} Qe8 {[%clk 00:09:18]} {[%emt
00:00:32]} 20. Bxh7 {[%clk 00:05:59]} {[%emt 00:02:22]} Bf6 {[%clk 00:09:10]}
{[%emt 00:00:13]} 21. Rgg1 {[%clk 00:05:04]} {[%emt 00:01:00]} Qh5 {[%clk
00:08:26]} {[%emt 00:00:50]} 22. Be4 {[%clk 00:04:02]} {[%emt 00:01:07]} Nac4
{[%clk 00:08:21]} {[%emt 00:00:09]} 23. b3 {[%clk 00:01:56]} {[%emt 00:02:12]}
Nd6 {[%clk 00:08:11]} {[%emt 00:00:14]} 24. Bg6 {[%clk 00:01:23]} {[%emt
00:00:38]} Qh8 {[%clk 00:07:52]} {[%emt 00:00:24]} 25. Ne4 {[%clk 00:01:26]}
{[%emt 00:00:03]} Bg7 {[%clk 00:07:07]} {[%emt 00:00:50]} 26. Nc5 {[%clk
00:01:13]} {[%emt 00:00:18]} Rg8 {[%clk 00:06:11]} {[%emt 00:01:00]} 27. Ne6
{[%clk 00:01:13]} {[%emt 00:00:06]} Rc8 {[%clk 00:06:15]} 28. h5 {[%clk
00:01:13]} {[%emt 00:00:05]} Nb5 {[%clk 00:05:46]} {[%emt 00:00:34]} 29. Nxg7
{[%clk 00:01:15]} {[%emt 00:00:03]} Qxg7 {[%clk 00:05:43]} {[%emt 00:00:08]} 30.
a4 {[%clk 00:01:00]} {[%emt 00:00:20]} Nd6 {[%clk 00:03:58]} {[%emt 00:01:50]}
31. Qb2 {[%clk 00:01:03]} {[%emt 00:00:02]} Qf8 {[%clk 00:03:32]} {[%emt
00:00:31]} 32. Kb1 {[%clk 00:01:05]} {[%emt 00:00:03]} Rd8 {[%clk 00:03:01]}
{[%emt 00:00:36]} 33. Rg5 {[%clk 00:00:52]} {[%emt 00:00:18]} Ndc8 {[%clk
00:02:39]} {[%emt 00:00:27]} 34. Be4 {[%clk 00:00:38]} {[%emt 00:00:19]} c6
{[%clk 00:01:29]} {[%emt 00:01:16]} 35. Qe5+ {[%clk 00:00:25]} {[%emt
00:00:19]} Ka8 {[%clk 00:01:30]} {[%emt 00:00:02]} 36. a5 {[%clk 00:00:26]}
{[%emt 00:00:05]} Nxd5 {[%clk 00:01:04]} {[%emt 00:00:31]} 37. Bxd5 {[%clk
00:00:29]} {[%emt 00:00:02]} cxd5 {[%clk 00:00:48]} {[%emt 00:00:21]} 38. Rxd5
{[%clk 00:00:33]} Rxd5 {[%clk 00:00:37]} {[%emt 00:00:16]} 39. Qxd5 {[%clk
00:00:37]} {[%emt 00:00:01]} Rh8 {[%clk 00:00:38]} {[%emt 00:00:04]} 40. Qd4
{[%clk 00:00:31]} {[%emt 00:00:12]} Rh6 {[%clk 00:00:24]} {[%emt 00:00:19]} 41.
Rc5 {[%clk 00:00:32]} {[%emt 00:00:03]} Rc6 {[%clk 00:00:23]} {[%emt 00:00:06]}
42. Rxc6 {[%clk 00:00:36]} {[%emt 00:00:02]} bxc6 {[%clk 00:00:27]} {[%emt
00:00:01]} 43. Kb2 {[%clk 00:00:37]} {[%emt 00:00:04]} Qe8 {[%clk 00:00:16]}
{[%emt 00:00:15]} 44. h6 {[%clk 00:00:40]} {[%emt 00:00:03]} Qg8 {[%clk
00:00:00]} {[%emt 00:00:18]} 1-0

[Event "Open NK Rapid 2025"]
[Site "Helmond, Netherlands"]
[Date "2025.05.03"]
[Round "2.5"]
[White "Veldhuyzen, Ywein"]
[Black "Beerdsen, Thomas"]
[Result "0-1"]
[TimeControl "15+5"]
[WhiteFideId "1095773"]
[BlackFideId "1030108"]
[WhiteElo "1894"]
[BlackElo "2485"]

1. d4 {[%clk 00:15:08]} d5 {[%clk 00:15:08]} {[%emt 00:00:03]} 2. Bf4 {[%clk
00:15:10]} {[%emt 00:00:03]} c5 {[%clk 00:15:11]} {[%emt 00:00:02]} 3. c3
{[%clk 00:15:13]} {[%emt 00:00:01]} Nc6 {[%clk 00:15:13]} {[%emt 00:00:03]} 4.
e3 {[%clk 00:15:17]} {[%emt 00:00:02]} cxd4 {[%clk 00:15:15]} {[%emt 00:00:03]}
5. exd4 {[%clk 00:15:19]} {[%emt 00:00:03]} f6 {[%clk 00:15:18]} {[%emt
00:00:01]} 6. Nf3 {[%clk 00:15:16]} {[%emt 00:00:09]} g5 {[%clk 00:15:21]}
{[%emt 00:00:02]} 7. Be3 {[%clk 00:15:16]} {[%emt 00:00:05]} Bg7 {[%clk
00:15:19]} {[%emt 00:00:07]} 8. Bb5 {[%clk 00:15:18]} {[%emt 00:00:04]} Nh6
{[%clk 00:15:20]} {[%emt 00:00:03]} 9. O-O {[%clk 00:15:17]} {[%emt 00:00:06]}
Nf5 {[%clk 00:15:21]} {[%emt 00:00:04]} 10. Re1 {[%clk 00:15:17]} {[%emt
00:00:05]} O-O {[%clk 00:15:05]} {[%emt 00:00:21]} 11. Bd3 {[%clk 00:15:10]}
{[%emt 00:00:12]} Nxe3 {[%clk 00:14:57]} {[%emt 00:00:14]} 12. Rxe3 {[%clk
00:15:10]} {[%emt 00:00:04]} e5 {[%clk 00:15:00]} {[%emt 00:00:02]} 13. dxe5
{[%clk 00:14:52]} {[%emt 00:00:23]} fxe5 {[%clk 00:15:03]} {[%emt 00:00:02]} 14.
Bc2 {[%clk 00:14:41]} {[%emt 00:00:16]} e4 {[%clk 00:15:05]} {[%emt 00:00:04]}
15. Nd4 {[%clk 00:14:40]} {[%emt 00:00:06]} Nxd4 {[%clk 00:15:07]} {[%emt
00:00:02]} 16. cxd4 {[%clk 00:14:43]} {[%emt 00:00:02]} Qf6 {[%clk 00:15:10]}
{[%emt 00:00:01]} 17. Re2 {[%clk 00:13:52]} {[%emt 00:00:57]} Bg4 {[%clk
00:15:06]} {[%emt 00:00:09]} 18. Nc3 {[%clk 00:13:23]} {[%emt 00:00:35]} Bxe2
{[%clk 00:14:54]} {[%emt 00:00:16]} 19. Qxe2 {[%clk 00:13:25]} {[%emt
00:00:03]} Qxd4 {[%clk 00:14:51]} {[%emt 00:00:08]} 20. Rd1 {[%clk 00:13:15]}
{[%emt 00:00:16]} Qc4 {[%clk 00:14:53]} {[%emt 00:00:02]} 21. Qe3 {[%clk
00:13:06]} {[%emt 00:00:14]} Kh8 {[%clk 00:14:20]} {[%emt 00:00:38]} 22. Bb3
{[%clk 00:12:08]} {[%emt 00:01:04]} d4 {[%clk 00:13:40]} {[%emt 00:00:44]} 23.
Qxe4 {[%clk 00:11:44]} {[%emt 00:00:29]} Qc6 {[%clk 00:13:43]} {[%emt
00:00:02]} 24. Nd5 {[%clk 00:10:31]} {[%emt 00:01:18]} Rae8 {[%clk 00:13:46]}
{[%emt 00:00:02]} 25. Qd3 {[%clk 00:10:18]} {[%emt 00:00:19]} Qe6 {[%clk
00:13:16]} {[%emt 00:00:34]} 26. h3 {[%clk 00:07:19]} {[%emt 00:03:04]} Qe2
{[%clk 00:13:09]} {[%emt 00:00:12]} 27. Bc2 {[%clk 00:07:08]} {[%emt 00:00:17]}
Qxd3 {[%clk 00:12:48]} {[%emt 00:00:26]} 28. Bxd3 {[%clk 00:07:11]} {[%emt
00:00:02]} Re6 {[%clk 00:12:21]} {[%emt 00:00:31]} 29. Kf1 {[%clk 00:06:44]}
{[%emt 00:00:32]} Rd8 {[%clk 00:12:21]} {[%emt 00:00:05]} 30. Nb4 {[%clk
00:06:34]} {[%emt 00:00:16]} Rb6 {[%clk 00:12:24]} {[%emt 00:00:02]} 0-1

[Event "Open NK Rapid 2025"]
[Site "Helmond, Netherlands"]
[Date "2025.05.03"]
[Round "2.6"]
[White "Dgebuadze, Alexandre"]
[Black "Overtoom, Reinier"]
[Result "1-0"]
[TimeControl "15+5"]
[WhiteFideId "203882"]
[BlackFideId "1047361"]
[WhiteElo "2454"]
[BlackElo "1892"]

1. e4 {[%clk 00:15:07]} {[%emt 00:00:02]} e5 {[%clk 00:15:07]} {[%emt
00:00:03]} 2. Bc4 {[%clk 00:15:10]} {[%emt 00:00:02]} Nf6 {[%clk 00:15:04]}
{[%emt 00:00:09]} 3. d3 {[%clk 00:15:14]} {[%emt 00:00:01]} Bc5 {[%clk
00:14:33]} {[%emt 00:00:36]} 4. Nc3 {[%clk 00:15:12]} {[%emt 00:00:06]} d6
{[%clk 00:14:03]} {[%emt 00:00:35]} 5. h3 {[%clk 00:15:12]} {[%emt 00:00:05]}
h6 {[%clk 00:13:52]} {[%emt 00:00:16]} 6. Nge2 {[%clk 00:15:14]} {[%emt
00:00:03]} Nc6 {[%clk 00:13:41]} {[%emt 00:00:17]} 7. a3 {[%clk 00:15:16]}
{[%emt 00:00:03]} Be6 {[%clk 00:13:33]} {[%emt 00:00:13]} 8. Ng3 {[%clk
00:15:03]} {[%emt 00:00:18]} Qd7 {[%clk 00:13:22]} {[%emt 00:00:15]} 9. Nd5
{[%clk 00:14:55]} {[%emt 00:00:13]} Bxd5 {[%clk 00:12:10]} {[%emt 00:01:18]} 10.
exd5 {[%clk 00:14:57]} {[%emt 00:00:02]} Ne7 {[%clk 00:12:05]} {[%emt
00:00:10]} 11. Qf3 {[%clk 00:14:56]} {[%emt 00:00:06]} a6 {[%clk 00:11:28]}
{[%emt 00:00:42]} 12. O-O {[%clk 00:14:40]} {[%emt 00:00:21]} O-O {[%clk
00:10:45]} {[%emt 00:00:48]} 13. Bxh6 {[%clk 00:14:23]} {[%emt 00:00:22]} Nh7
{[%clk 00:08:29]} {[%emt 00:02:22]} 14. Be3 {[%clk 00:13:37]} {[%emt 00:00:51]}
Bxe3 {[%clk 00:06:50]} {[%emt 00:01:44]} 15. Qxe3 {[%clk 00:13:02]} {[%emt
00:00:40]} f5 {[%clk 00:06:02]} {[%emt 00:00:53]} 16. f4 {[%clk 00:11:49]}
{[%emt 00:01:18]} Ng6 {[%clk 00:05:47]} {[%emt 00:00:20]} 17. Nh5 {[%clk
00:11:22]} {[%emt 00:00:30]} Rae8 {[%clk 00:05:34]} {[%emt 00:00:19]} 18. fxe5
{[%clk 00:09:42]} {[%emt 00:01:45]} Nxe5 {[%clk 00:05:05]} {[%emt 00:00:34]} 19.
Qg3 {[%clk 00:09:20]} {[%emt 00:00:26]} g5 {[%clk 00:03:12]} {[%emt 00:02:00]}
20. Nf4 {[%clk 00:08:56]} {[%emt 00:00:28]} Rf6 {[%clk 00:02:41]} {[%emt
00:00:37]} 21. Rae1 {[%clk 00:08:17]} {[%emt 00:00:43]} Kh8 {[%clk 00:02:36]}
{[%emt 00:00:11]} 22. Ne6 {[%clk 00:08:02]} {[%emt 00:00:20]} Rg8 {[%clk
00:02:34]} {[%emt 00:00:07]} 23. Rxe5 {[%clk 00:06:30]} {[%emt 00:01:37]} dxe5
{[%clk 00:02:36]} {[%emt 00:00:03]} 24. Qxe5 {[%clk 00:06:32]} {[%emt
00:00:02]} Qd6 {[%clk 00:01:53]} {[%emt 00:00:49]} 25. Rxf5 {[%clk 00:06:18]}
{[%emt 00:00:18]} Qxe5 {[%clk 00:01:32]} {[%emt 00:00:26]} 26. Rxe5 {[%clk
00:06:20]} {[%emt 00:00:02]} Nf8 {[%clk 00:00:49]} {[%emt 00:00:49]} 27. Rxg5
{[%clk 00:03:59]} {[%emt 00:02:25]} Rxg5 {[%clk 00:00:35]} {[%emt 00:00:20]} 28.
Nxg5 {[%clk 00:04:01]} {[%emt 00:00:02]} Nd7 {[%clk 00:00:35]} {[%emt
00:00:06]} 29. Ne4 {[%clk 00:03:48]} {[%emt 00:00:18]} Rg6 {[%clk 00:00:35]}
{[%emt 00:00:06]} 30. d4 {[%clk 00:03:40]} {[%emt 00:00:12]} a5 {[%clk
00:00:38]} {[%emt 00:00:03]} 31. Bd3 {[%clk 00:03:19]} {[%emt 00:00:26]} Rh6
{[%clk 00:00:35]} {[%emt 00:00:08]} 32. Kf2 {[%clk 00:03:01]} {[%emt 00:00:22]}
b6 {[%clk 00:00:38]} {[%emt 00:00:02]} 33. c4 {[%clk 00:02:39]} {[%emt
00:00:27]} Kg7 {[%clk 00:00:40]} {[%emt 00:00:04]} 34. Ng5 {[%clk 00:02:33]}
{[%emt 00:00:11]} Rf6+ {[%clk 00:00:40]} {[%emt 00:00:05]} 35. Ke3 {[%clk
00:02:35]} {[%emt 00:00:02]} Nf8 {[%clk 00:00:40]} {[%emt 00:00:06]} 36. h4
{[%clk 00:02:26]} {[%emt 00:00:13]} Rh6 {[%clk 00:00:41]} {[%emt 00:00:05]} 37.
g3 {[%clk 00:02:28]} {[%emt 00:00:03]} Ng6 {[%clk 00:00:41]} {[%emt 00:00:05]}
38. Ne6+ {[%clk 00:02:28]} {[%emt 00:00:04]} Kf6 {[%clk 00:00:45]} {[%emt
00:00:01]} 39. Nxc7 {[%clk 00:02:28]} {[%emt 00:00:06]} 1-0

[Event "Open NK Rapid 2025"]
[Site "Helmond, Netherlands"]
[Date "2025.05.03"]
[Round "2.7"]
[White "Van Ree, Thailo"]
[Black "Schneider, Ilja"]
[Result "0-1"]
[TimeControl "15+5"]
[WhiteFideId "40102181"]
[BlackFideId "4663306"]
[WhiteElo "1877"]
[BlackElo "2438"]

1. d4 {[%clk 00:15:08]} {[%emt 00:00:02]} Nf6 {[%emt 00:00:03]} 2. c4 {[%clk
00:15:11]} e6 {[%clk 00:15:13]} {[%emt 00:00:01]} 3. Nc3 {[%clk 00:15:14]}
{[%emt 00:00:01]} Bb4 {[%clk 00:15:17]} {[%emt 00:00:01]} 4. Qc2 {[%clk
00:15:17]} {[%emt 00:00:01]} d5 {[%clk 00:15:21]} {[%emt 00:00:01]} 5. a3
{[%clk 00:15:20]} {[%emt 00:00:02]} Bxc3+ {[%clk 00:15:24]} {[%emt 00:00:01]} 6.
Qxc3 {[%clk 00:15:24]} {[%emt 00:00:02]} O-O {[%clk 00:15:26]} {[%emt
00:00:03]} 7. Nf3 {[%clk 00:15:27]} {[%emt 00:00:02]} dxc4 {[%clk 00:15:27]}
{[%emt 00:00:05]} 8. Qxc4 {[%clk 00:15:29]} {[%emt 00:00:02]} b6 {[%clk
00:15:31]} 9. h4 {[%clk 00:15:23]} {[%emt 00:00:11]} Ba6 {[%clk 00:15:07]}
{[%emt 00:00:30]} 10. Qa4 {[%clk 00:15:06]} {[%emt 00:00:21]} Qd7 {[%clk
00:14:55]} {[%emt 00:00:17]} 11. Qxd7 {[%clk 00:14:15]} {[%emt 00:00:57]} Nbxd7
{[%clk 00:14:58]} {[%emt 00:00:01]} 12. h5 {[%clk 00:14:18]} {[%emt 00:00:03]}
h6 {[%clk 00:14:43]} {[%emt 00:00:20]} 13. Bf4 {[%clk 00:13:58]} {[%emt
00:00:24]} c5 {[%clk 00:14:36]} {[%emt 00:00:13]} 14. dxc5 {[%clk 00:13:52]}
{[%emt 00:00:10]} Nxc5 {[%clk 00:14:39]} {[%emt 00:00:02]} 15. b4 {[%clk
00:13:51]} {[%emt 00:00:06]} Nce4 {[%clk 00:14:30]} {[%emt 00:00:14]} 16. Ne5
{[%clk 00:13:42]} {[%emt 00:00:15]} Rac8 {[%clk 00:14:13]} {[%emt 00:00:22]} 17.
f3 {[%clk 00:13:34]} {[%emt 00:00:13]} Nc3 {[%clk 00:13:28]} {[%emt 00:00:50]}
18. g4 {[%clk 00:12:54]} {[%emt 00:00:45]} Nfd5 {[%clk 00:13:17]} {[%emt
00:00:16]} 19. Bd2 {[%clk 00:12:57]} {[%emt 00:00:02]} Na4 {[%clk 00:11:04]}
{[%emt 00:02:17]} 20. e4 {[%clk 00:12:06]} {[%emt 00:00:56]} Bxf1 {[%clk
00:11:08]} {[%emt 00:00:01]} 21. Rxf1 {[%clk 00:12:11]} Ne7 {[%clk 00:11:09]}
{[%emt 00:00:04]} 22. Rc1 {[%clk 00:12:01]} {[%emt 00:00:14]} Rxc1+ {[%clk
00:10:53]} {[%emt 00:00:22]} 23. Bxc1 {[%clk 00:12:05]} {[%emt 00:00:01]} Rc8
{[%clk 00:10:52]} {[%emt 00:00:06]} 24. Bd2 {[%clk 00:12:09]} {[%emt 00:00:01]}
f6 {[%clk 00:10:49]} {[%emt 00:00:08]} 25. Nd3 {[%clk 00:12:03]} {[%emt
00:00:10]} Nc6 {[%clk 00:10:47]} {[%emt 00:00:07]} 26. Nf4 {[%clk 00:11:48]}
{[%emt 00:00:20]} Kf7 {[%clk 00:10:38]} {[%emt 00:00:15]} 27. Ne2 {[%clk
00:10:50]} {[%emt 00:01:03]} Ne5 {[%clk 00:10:37]} {[%emt 00:00:07]} 28. Nd4
{[%clk 00:10:48]} {[%emt 00:00:06]} Rd8 {[%clk 00:09:44]} {[%emt 00:00:57]} 29.
Be3 {[%clk 00:10:27]} {[%emt 00:00:27]} Nb2 {[%clk 00:07:32]} {[%emt 00:02:17]}
30. Ke2 {[%clk 00:10:13]} {[%emt 00:00:18]} Nbc4 {[%clk 00:07:27]} {[%emt
00:00:10]} 31. a4 {[%clk 00:09:59]} {[%emt 00:00:20]} Nxe3 {[%clk 00:06:22]}
{[%emt 00:01:10]} 32. Kxe3 {[%clk 00:10:03]} {[%emt 00:00:01]} Rc8 {[%clk
00:04:54]} {[%emt 00:01:33]} 33. Nb5 {[%clk 00:09:51]} {[%emt 00:00:16]} Nc4+
{[%clk 00:04:40]} {[%emt 00:00:19]} 34. Kd4 {[%clk 00:09:41]} {[%emt 00:00:15]}
a6 {[%clk 00:04:10]} {[%emt 00:00:36]} 35. Nc3 {[%clk 00:09:27]} {[%emt
00:00:19]} Ne5 {[%clk 00:03:11]} {[%emt 00:01:03]} 36. Na2 {[%clk 00:09:07]}
{[%emt 00:00:25]} Rc2 {[%clk 00:03:06]} {[%emt 00:00:11]} 0-1

[Event "Open NK Rapid 2025"]
[Site "Helmond, Netherlands"]
[Date "2025.05.03"]
[Round "2.8"]
[White "Baselmans, Luuk"]
[Black "Jansen, Marijn"]
[Result "1-0"]
[TimeControl "15+5"]
[WhiteFideId "1051008"]
[BlackFideId "1089587"]
[WhiteElo "2405"]
[BlackElo "1880"]

1. e4 {[%clk 00:15:07]} {[%emt 00:00:02]} c6 {[%clk 00:15:09]} {[%emt
00:00:02]} 2. d4 {[%clk 00:15:07]} {[%emt 00:00:05]} d5 {[%clk 00:15:13]}
{[%emt 00:00:01]} 3. exd5 {[%clk 00:15:10]} {[%emt 00:00:02]} cxd5 {[%clk
00:15:16]} {[%emt 00:00:02]} 4. Bd3 {[%clk 00:15:14]} {[%emt 00:00:01]} Nc6
{[%clk 00:15:19]} {[%emt 00:00:02]} 5. c3 {[%clk 00:15:17]} {[%emt 00:00:02]}
Nf6 {[%clk 00:15:22]} {[%emt 00:00:02]} 6. Bf4 {[%clk 00:15:20]} {[%emt
00:00:02]} Bg4 {[%clk 00:15:17]} {[%emt 00:00:10]} 7. Qb3 {[%clk 00:15:22]}
{[%emt 00:00:03]} Qc8 {[%clk 00:15:12]} {[%emt 00:00:10]} 8. Nd2 {[%clk
00:15:22]} {[%emt 00:00:05]} e6 {[%clk 00:15:15]} {[%emt 00:00:02]} 9. Ngf3
{[%clk 00:15:24]} {[%emt 00:00:03]} Be7 {[%clk 00:15:12]} {[%emt 00:00:08]} 10.
O-O {[%clk 00:15:21]} {[%emt 00:00:08]} O-O {[%clk 00:15:15]} {[%emt 00:00:03]}
11. Rfe1 {[%clk 00:15:13]} {[%emt 00:00:13]} a5 {[%clk 00:15:04]} {[%emt
00:00:16]} 12. a4 {[%clk 00:15:03]} {[%emt 00:00:15]} Re8 {[%clk 00:14:58]}
{[%emt 00:00:10]} 13. Ne5 {[%clk 00:14:08]} {[%emt 00:01:00]} Nxe5 {[%clk
00:14:22]} {[%emt 00:00:42]} 14. Bxe5 {[%clk 00:14:09]} {[%emt 00:00:03]} Bh5
{[%clk 00:14:19]} {[%emt 00:00:08]} 15. Rac1 {[%clk 00:13:06]} {[%emt
00:01:08]} Bg6 {[%clk 00:14:17]} {[%emt 00:00:08]} 16. Bxg6 {[%clk 00:12:32]}
{[%emt 00:00:38]} hxg6 {[%clk 00:14:20]} {[%emt 00:00:02]} 17. c4 {[%clk
00:12:08]} {[%emt 00:00:29]} Qd7 {[%clk 00:13:38]} {[%emt 00:00:47]} 18. c5
{[%clk 00:11:32]} {[%emt 00:00:41]} Rac8 {[%clk 00:12:24]} {[%emt 00:01:19]} 19.
h3 {[%clk 00:09:48]} {[%emt 00:01:49]} Rc6 {[%clk 00:10:58]} {[%emt 00:01:32]}
20. Qb5 {[%clk 00:09:27]} {[%emt 00:00:25]} Rcc8 {[%clk 00:10:28]} {[%emt
00:00:34]} 21. Ra1 {[%clk 00:08:29]} {[%emt 00:01:03]} Bd8 {[%clk 00:08:41]}
{[%emt 00:01:51]} 22. Nb3 {[%clk 00:06:53]} {[%emt 00:01:43]} Ra8 {[%clk
00:07:59]} {[%emt 00:00:47]} 23. Bxf6 {[%clk 00:06:18]} {[%emt 00:00:41]} Qxb5
{[%clk 00:07:59]} {[%emt 00:00:05]} 24. axb5 {[%clk 00:06:21]} {[%emt
00:00:02]} gxf6 {[%clk 00:07:42]} {[%emt 00:00:21]} 25. Ra4 {[%clk 00:06:19]}
{[%emt 00:00:07]} e5 {[%clk 00:07:30]} {[%emt 00:00:17]} 26. b6 {[%clk
00:06:01]} {[%emt 00:00:23]} Kf8 {[%clk 00:07:16]} {[%emt 00:00:19]} 27. Rxa5
{[%clk 00:05:34]} {[%emt 00:00:33]} Rxa5 {[%clk 00:06:53]} {[%emt 00:00:28]} 28.
Nxa5 {[%clk 00:05:37]} {[%emt 00:00:01]} exd4 {[%clk 00:06:56]} {[%emt
00:00:02]} 29. Rxe8+ {[%clk 00:05:38]} {[%emt 00:00:04]} Kxe8 {[%clk 00:07:00]}
30. Nxb7 {[%clk 00:05:35]} {[%emt 00:00:09]} d3 {[%clk 00:07:02]} {[%emt
00:00:03]} 31. Kf1 {[%clk 00:05:37]} {[%emt 00:00:02]} Be7 {[%clk 00:07:06]}
{[%emt 00:00:01]} 32. b4 {[%clk 00:05:06]} {[%emt 00:00:36]} Kd7 {[%clk
00:06:55]} {[%emt 00:00:16]} 33. Ke1 {[%clk 00:04:55]} {[%emt 00:00:16]} Kc6
{[%clk 00:06:51]} {[%emt 00:00:09]} 34. Na5+ {[%clk 00:04:57]} {[%emt
00:00:02]} Kb5 {[%clk 00:06:52]} {[%emt 00:00:05]} 35. b7 {[%clk 00:04:59]}
{[%emt 00:00:03]} 1-0